Cogmind - Beta 11.1 @@@ ROGUE MODE // 2022.05.01 @ 17:40:49 Player: Okkudo Result: Destroyed by G-34 Mercenary with Small Laser Performance ------------- Evolutions (1) 500 Regions Visited (4) 800 Robots Destroyed (28) 140 Value Destroyed (719) 719 Prototype IDs (0) 0 Alien Tech Used (0) 0 Bonus (0) 0 TOTAL SCORE: 2159 Bonus ------- None Cogmind --------- Core Integrity 0/400 Matter 298/300 Energy 97/100 System Corruption 1% Temperature Cool (6) Movement Core (250) Ox4 Location -9/Mines Parts ------- > --- POWER (1) -------- (None) > --- PROPULSION (2) --- (None) > --- UTILITY (4) ------ Medium Storage Unit Signal Interpreter Improved Trap Extractor (0/6) > --- WEAPON (2) ------- Mace > --- INVENTORY (10) --- Improved Ion Engine Aluminum Leg Aluminum Leg EM Pulse Gun Heavy Laser Gatling Laser Advanced Beam Cannon Light Assault Rifle Mining Laser Peak State ------------ > --- POWER ------------ Improved Ion Engine > --- PROPULSION ------- Improved Aluminum Leg Carbon-fiber Leg > --- UTILITY ---------- Medium Storage Unit Visual Processing Unit Signal Interpreter Improved Trap Extractor > --- WEAPON ----------- Light Assault Rifle Grenade Launcher > --- INVENTORY -------- Aluminum Leg Aluminum Leg EM Pulse Gun Advanced Beam Cannon Mining Laser Mace [Rating: 17] Favorites ----------- Power Light Ion Engine Engine Light Ion Engine Power Core Micro Nuclear Core Propulsion Aluminum Leg Leg Aluminum Leg Utility Medium Storage Unit Device Improved Trap Extractor Storage Medium Storage Unit Processor Signal Interpreter Weapon Light Assault Rifle Energy Gun EM Pulse Gun Ballistic Gun Light Assault Rifle Launcher Grenade Launcher Impact Weapon Mace Build | -11 -10 -10 -9 -9 ------- Run | Scr Mat Min Mat Min Slots Evolved 2 | . . . 2 . Power . | . . . . . Propulsion . | . . . . . Utility 2 | . . . 2 . Weapon . | . . . . . Parts Attached 35 | 6 4 5 15 5 Power 8 | 1 . 2 3 2 Engine 7 | 1 . 2 3 1 Core 1 | . . . . 1 Reactor . | . . . . . Propulsion 7 | 2 1 1 2 1 Treads . | . . . . . Leg 7 | 2 1 1 2 1 Wheel . | . . . . . Hover . | . . . . . Flight . | . . . . . Utility 5 | 1 1 . 2 1 Device 1 | . . . . 1 Storage 2 | 1 1 . . . Processor 2 | . . . 2 . Hackware . | . . . . . Protection . | . . . . . Artifact . | . . . . . Weapon 15 | 2 2 2 8 1 Energy Gun 4 | 1 1 . 2 . Energy Cannon . | . . . . . Ballistic Gun 8 | 1 1 2 4 . Ballistic Cannon . | . . . . . Launcher 2 | . . . 2 . Special Weapon . | . . . . . Impact Weapon 1 | . . . . 1 Slashing Weapon . | . . . . . Piercing Weapon . | . . . . . Special Melee Weapon . | . . . . . Unidentified Prototypes . | . . . . . Parts Lost 9 | . . 1 5 3 Power 3 | . . 1 1 1 Propulsion . | . . . . . Utility 1 | . . . . 1 Weapon 5 | . . . 4 1 Highest Loss Streak 3 | . . 1 3 3 To Critical Strikes . | . . . . . Average Slot Usage (%) 82 | . 85 83 82 81 Engine 9 | . 14 12 10 4 Core 1 | . . . . 4 Leg 20 | . 28 28 22 12 Device 1 | . . . . 4 Storage 12 | . 14 14 11 11 Processor 12 | . . . 18 21 Ballistic Gun 17 | . 24 28 17 9 Launcher 4 | . . . 1 10 Naked Turns . | . . . . . Heaviest Build 24 | 11 16 15 21 24 Greatest Support 28 | 20 20 20 23 28 Greatest Overweight (x) 7 | . . . 1 7 Average Overweight (x) . | . . . . 1 Largest Inventory Capacity 10 | 8 10 10 10 10 Average Capacity 9 | 6 9 10 10 10 Most Carried 10 | 5 4 7 10 9 Average Carried 5 | 1 3 4 7 6 Final Capacity 10 | 8 10 10 10 10 Final Carried 9 | 1 4 6 5 9 Class Distribution -------------------- 63% | Mutant 36% | Scavenger-Mutant Dominant Class ---------------- Mutant | -10/Materials Scavenger-Mutant | -10/Mines Scavenger-Mutant | -9/Materials Mutant | -9/Mines Resources | -11 -10 -10 -9 -9 ----------- Run | Scr Mat Min Mat Min Matter Collected 704 | 231 92 80 218 83 Remotely . | . . . . . Salvage Created 960 | . 163 82 656 59 Parts 63 | . 6 12 41 4 Haulers Intercepted . | . . . . . Recyclers Shooed 4 | . 1 1 2 . Parts Field Recycled . | . . . . . Retrieved Matter . | . . . . . Parts Self-Destructed . | . . . . . Prevented . | . . . . . Kills | -11 -10 -10 -9 -9 ------- Run | Scr Mat Min Mat Min Combat Hostiles Destroyed 24 | . 3 5 14 2 Melee 1 | . . . . 1 Guns 17 | . 2 5 10 . AOE 5 | . 1 . 4 . Classes Destroyed 7 | . 2 1 4 . Worker 1 | . . . 1 . Recycler 1 | . . . 1 . Watcher 2 | . 1 . 1 . Swarmer 9 | . . 5 4 . Grunt 10 | . 3 . 5 2 Duelist 1 | . . . 1 . Sentry 4 | . . . 4 . Best Kill Streak 7 | . 3 3 7 1 Combat Bots Only 7 | . 2 3 7 1 Max Kills in Single Turn 3 | . 1 1 3 1 Gunslinging . | . . . . . Exploded 3 | . 1 . 3 . Melee 1 | . . . . 1 Uniques/NPCs Destroyed . | . . . . . Combat | -11 -10 -10 -9 -9 -------- Run | Scr Mat Min Mat Min Damage Taken 1786 | . 215 268 839 464 Core 525 | . 51 66 249 159 Absorbed by Shields . | . . . . . Core Remaining (%) 76 | 100 . 53 . . Volleys Fired 91 | . 17 28 43 3 Largest 2 | . 2 2 2 1 Hottest 68 | . 60 40 68 20 Shots Fired 163 | . 34 56 70 3 Gun 163 | . 34 56 70 3 Cannon . | . . . . . Launcher . | . . . . . Special . | . . . . . Kinetic 130 | . 23 56 48 3 Thermal . | . . . . . Explosive . | . . . . . Electromagnetic 33 | . 11 . 22 . Robot Hit Streak 11 | . 6 7 11 . Robot Miss Streak 7 | . 5 7 2 3 Penetration Max . | . . . . . Secondary Targets . | . . . . . Shots Hit Robots 107 | . 20 21 54 12 Core Hits 48 | . 9 7 31 1 Critical Kills 2 | . . . 2 . Critical Parts Destroyed 1 | . . . . 1 Critical Strikes 5 | . 1 . 3 1 Destroy 2 | . . . 2 . Corrupt 2 | . 1 . 1 . Smash 1 | . . . . 1 Melee Attacks 21 | . . . . 21 Impact 21 | . . . . 21 Slashing . | . . . . . Piercing . | . . . . . Sneak Attacks . | . . . . . Combat Hostiles . | . . . . . Follow-up Attacks . | . . . . . Damage Inflicted 1710 | . 322 174 856 358 Guns 1061 | . 226 174 661 . Cannons . | . . . . . Explosions 283 | . 96 . 187 . Melee 358 | . . . . 358 Ramming 8 | . . . 8 . Kinetic 725 | . 106 174 445 . Thermal 283 | . 96 . 187 . Explosive . | . . . . . Electromagnetic 336 | . 120 . 216 . Impact 358 | . . . . 358 Slashing . | . . . . . Piercing . | . . . . . Highest Corruption 1 | . . . . 1 Average Corruption 1 | . . . . 1 Corruption Purged . | . . . . . Corruption Blocked . | . . . . . Overload Shots . | . . . . . Overflow Damage 46 | . . . 24 22 Projectiles . | . . . . . Explosions 24 | . . . 24 . Melee 22 | . . . . 22 Knockbacks 4 | . . . . 4 Impact 3 | . . . . 3 Kinetic . | . . . . . Secondary 1 | . . . . 1 Self-Inflicted Damage 93 | . 45 . 48 . Shots 2 | . 1 . 1 . Rammed . | . . . . . Targets Rammed 1 | . . . 1 . Kicked 1 | . . . 1 . Crushed . | . . . . . Highest Temperature 144 | . 144 . 30 . Average Temperature 39 | . 71 . 13 . Received Heat Transfer 495 | . 102 . 183 210 Siege Activations . | . . . . . Robots Corrupted . | . . . . . Combat Hostiles . | . . . . . Parts Fried 3 | . 2 . . 1 Impact Corruptions 2 | . . . . 2 Robots Melted . | . . . . . Combat Hostiles . | . . . . . Parts Melted . | . . . . . Heat Transferred 300 | . 50 . 250 . Parts Sabotaged . | . . . . . Parts Stolen . | . . . . . Parts Stripped . | . . . . . Power Chain Reactions 3 | . 1 . 2 . Missiles Intercepted . | . . . . . Alert | -11 -10 -10 -9 -9 ------- Run | Scr Mat Min Mat Min Peak Influence 270 | . 134 125 270 86 Initial 86 | . . 1 48 86 Average 68 | . 83 45 118 41 Maximum Alert Level 1 | . . . 1 . Low Security (%) 96 | 100 100 100 87 100 Level 1 3 | . . . 12 . Level 2 . | . . . . . Level 3 . | . . . . . Level 4 . | . . . . . Level 5 . | . . . . . High Security . | . . . . . Max Security . | . . . . . Squads Dispatched 4 | . . . 4 . Investigation 2 | . . . 2 . Extermination . | . . . . . Reinforcement 2 | . . . 2 . Assault . | . . . . . Garrison . | . . . . . Intercept . | . . . . . Searches Triggered . | . . . . . Construction Impeded 1 | . . . 1 . Haulers Reinforced . | . . . . . Active Scanning Responses . | . . . . . Cargo Convoy Interrupts . | . . . . . Stealth | -11 -10 -10 -9 -9 --------- Run | Scr Mat Min Mat Min Distress Signals 2 | . 1 . 1 . Communications Jammed . | . . . . . Distress Signals . | . . . . . Times Spotted 36 | . 5 7 20 4 Peak Tracking Total 7 | . 3 3 7 3 Tactical Retreats 3 | . 1 1 1 . Traps | -11 -10 -10 -9 -9 ------- Run | Scr Mat Min Mat Min Traps Triggered 2 | . . . . 2 Indirectly . | . . . . . Trap Hack Attempts . | . . . . . Triggered . | . . . . . Disarmed . | . . . . . Reprogrammed 6 | . . . 6 . Reused 1 | . . . 1 . Traps Extracted . | . . . . . Installed . | . . . . . Triggered 1 | . . . 1 . Machines | -11 -10 -10 -9 -9 ---------- Run | Scr Mat Min Mat Min Machines Disabled 1 | . 1 . . . Max in Single Turn 1 | . 1 . . . Machines Sabotaged . | . . . . . Garrisons Compromised . | . . . . . Overloaded Fab Kills . | . . . . . Hacking | -11 -10 -10 -9 -9 --------- Run | Scr Mat Min Mat Min Machines Accessed 7 | . 3 . 3 1 Terminals 6 | . 3 . 3 . Fabricators . | . . . . . Repair Stations . | . . . . . Recycling Units . | . . . . . Scanalyzers . | . . . . . Garrison Access . | . . . . . Total Hacks 24 | . 13 . 10 1 Successful 14 | . 7 . 6 1 Failed 10 | . 6 . 4 . Catastrophic 1 | . . . 1 . Database Lockouts . | . . . . . Manual 11 | . 6 . 5 . Terminals 23 | . 13 . 10 . Fabricators . | . . . . . Repair Stations . | . . . . . Recycling Units . | . . . . . Scanalyzers . | . . . . . Garrison Access . | . . . . . Terminal Hacks 12 | . 6 . 5 1 Record 2 | . 2 . . . Open Door 1 | . . . . 1 Branch Access Points 1 | . 1 . . . Emergency Access Points 1 | . 1 . . . Terminal Index 1 | . . . 1 . Alert Level 1 | . . . 1 . Unreport Threat 1 | . . . 1 . Locate Traps 1 | . 1 . . . Reprogram Traps 1 | . . . 1 . Zone Layout 2 | . 1 . 1 . Fabricator Hacks . | . . . . . Repair Station Hacks . | . . . . . Recycling Unit Hacks . | . . . . . Scanalyzer . | . . . . . Garrison Access Hacks . | . . . . . Unauthorized Hacks 2 | . 1 . 1 . Terminals 2 | . 1 . 1 . Botnet 2 | . 1 . 1 . Fabricators . | . . . . . Repair Stations . | . . . . . Recycling Units . | . . . . . Scanalyzers . | . . . . . Garrison Access . | . . . . . Data Cores Recovered . | . . . . . Used . | . . . . . Hacking Detections 5 | . 3 . 2 . Full Trace Events 1 | . . . 1 . Feedback Events . | . . . . . Feedback Blocked . | . . . . . Robot Schematics Acquired . | . . . . . Robots Built . | . . . . . Authchips . | . . . . . Time . | . . . . . Total Robot Build Rating . | . . . . . Part Schematics Acquired . | . . . . . Parts Built . | . . . . . Authchips . | . . . . . Time . | . . . . . Total Part Build Rating . | . . . . . Parts Repaired . | . . . . . Time . | . . . . . Parts Recycled . | . . . . . Recycled Matter . | . . . . . Retrieved Matter . | . . . . . Retrieved Components . | . . . . . Parts Scanalyzed . | . . . . . Part Schematics Acquired . | . . . . . Parts Damaged . | . . . . . Bothacking | -11 -10 -10 -9 -9 ------------ Run | Scr Mat Min Mat Min Used RIF Installer . | . . . . . Robots Hacked . | . . . . . Non-combat . | . . . . . Combat . | . . . . . Robot Hacks Applied . | . . . . . Relay Couplers Released . | . . . . . Fabnet Peak Effective % . | . . . . . Robots Rewired . | . . . . . Allies Hacked . | . . . . . Hacks Repelled . | . . . . . Allies | -11 -10 -10 -9 -9 -------- Run | Scr Mat Min Mat Min Total Allies . | . . . . . Largest Group . | . . . . . Highest-Rated Group . | . . . . . Highest-Rated Ally . | . . . . . Total Orders . | . . . . . Ally Attacks . | . . . . . Total Damage . | . . . . . Kills . | . . . . . Allies Corrupted . | . . . . . Allies Melted . | . . . . . Intel | -11 -10 -10 -9 -9 ------- Run | Scr Mat Min Mat Min Robot Analysis Total . | . . . . . Derelict Logs Recovered 3 | . . 1 . 2 Drone Launches . | . . . . . Drone Recoveries . | . . . . . Exploration | -11 -10 -10 -9 -9 ------------- Run | Scr Mat Min Mat Min Turns Passed 2209 | 55 455 338 524 837 Spaces Moved 1272 | 45 329 200 261 437 Core 86 | 16 . . . 70 Treads . | . . . . . Legs 1186 | 29 329 200 261 367 Wheels . | . . . . . Hover . | . . . . . Flight . | . . . . . Fastest Speed 50 | 50 120 120 120 120 Average Speed 138 | 95 120 120 135 165 Slowest Speed 400 | 120 120 120 190 400 Overloaded Moves . | . . . . . Propulsion Burnouts . | . . . . . Robots Hopped . | . . . . . Cave-ins Triggered 1 | . . . . 1 Exploration Rate (%) 44 | 4 65 52 31 72 Regions Visited 4 Branch Regions 2 Pre-discovered Areas 1 | . . . . 1 Known Exits Taken 2 | . 1 . 1 . Unknown Exits Taken 2 | 1 . 1 . . Scrap Searched 1 | . . . . 1 Spaces Dug 2 | . . . . 2 Terrain Destroyed 12 | . 3 . 7 2 Melee 2 | . . . . 2 Projectile . | . . . . . AOE 10 | . 3 . 7 . Terrain Rammed . | . . . . . Walls Destroyed . | . . . . . Machines Disabled . | . . . . . Actions | -11 -10 -10 -9 -9 --------- Run | Scr Mat Min Mat Min Total 1542 | 56 360 253 363 510 Wait 82 | . 2 14 29 37 Move 1268 | 44 328 199 260 437 Hop . | . . . . . Pick Up 34 | 6 6 5 10 7 Fast Attach 1 | 1 . . . . Attach 18 | 5 1 3 6 3 Detach . | . . . . . Swap 16 | . 3 2 9 2 Drop 10 | . 3 2 5 . Fire 91 | . 17 28 43 3 Melee 21 | . . . . 21 Ram . | . . . . . Kick 1 | . . . 1 . Crush . | . . . . . Escape Stasis . | . . . . . Rewire . | . . . . . Trap . | . . . . . Miscellaneous . | . . . . . Route ------- -11/Scrapyard -10/Materials (discovered 4 exits: *Mat x2 / *Min x2) -10/Mines (discovered 2 exits: *Mat x2) -9/Materials -9/Mines (discovered 1 exit: [*Mat]) History --------- Turn | Location | Event 2 | -11/Scrapyard | Discovered new exit (range 16) 56 | -11/Scrapyard | Entered Materials 78 | -10/Materials | Identified exit to Mines 313 | -10/Materials | Build established: Mutant 336 | -10/Materials | Discovered new exit (range 9) 486 | -10/Materials | Discovered new exit (range 3) 511 | -10/Materials | Entered Mines 548 | -10/Mines | Discovered new exit (range 3) 813 | -10/Mines | Discovered new exit (range 14) 820 | -10/Mines | Assembled infested the area 842 | -10/Mines | Learned Materials non-interactive machine intel 849 | -10/Mines | Entered Materials 849 | -9/Materials | Evolved 2 slots: Utility x2 850 | -9/Materials | Loaded intel: 31 non-interactive machine locations 1306 | -9/Materials | Core integrity fell below 50% 1336 | -9/Materials | Lost 3 parts (3w) 1352 | -9/Materials | Destroyed 7 combat bots 1352 | -9/Materials | Discovered new exit (range 15) 1372 | -9/Materials | Identified exit to Mines 1373 | -9/Materials | Entered Mines 1428 | -9/Mines | Learned Materials security intel 1574 | -9/Mines | Discovered new exit (range 9) 1650 | -9/Mines | Learned Materials stockpile data 1689 | -9/Mines | Learned location of Storage (-8) 1772 | -9/Mines | Build established: Scavenger-Mutant 1833 | -9/Mines | Met a Derelict who couldn't figure out how to use a Trap Extractor 2107 | -9/Mines | Excavation squad dispatched 2107 | -9/Mines | A large section of the Mines collapsed 2131 | -9/Mines | Build established: Mutant 2182 | -9/Mines | Core integrity fell below 20% 2209 | -9/Mines | Crushed by falling debris 2210 | -9/Mines | Destroyed by G-34 Mercenary with Small Laser Last Messages --------------- 02194_ G-34 Mercenary suffers critical hit (Smash). 02194_ Destroyed Sml. Laser. 02194_ G-34 Mercenary system corrupted by crushing effect. 02195_ G-34 Mercenary system terminally corrupted. 02195_ Ion Engine fried. 02197_ Acquired 23 matter. 02199_ T-07 Excavator is excavating. 02200_ G-34 Mercenary knocked back. 02203_ The unstable cave ceiling collapses. 02203_ T-07 Excavator is excavating. 02204_ G-34 Mercenary knocked back. 02206_ T-07 Excavator is excavating. 02207_ G-34 Mercenary knocked back. 02207_ T-07 Excavator is excavating. 02208_ Mic. Nuclear Core destroyed. 02209_ The unstable cave ceiling collapses. 02209_ Crushed by falling debris. 02209_ Visual Processing Unit destroyed. 02209_ System corrupted by crushing effect (+1). 02209_ T-07 Excavator is excavating. Map ----- +----------------------------------------------------+ | ????????????????????????????????????????????# ### | | ???????????????????????????????????????????## #?? | | ??????????????????????????????????????????## #?? | | ????????????????????????????????????####### ##? | | ???????????????????????????????????## #? | | ???????????????????????????????????# """ ## | | ???????????????????????????????????# """ ## | | ???????????????????????????????????## """ ## | | ????????????????????????????????????#### ## | | ???????????????????????????????????????### ## | | ?????????????????????????????????????????## ### | | ??????????????????????????????? ?????????## #### | | ??????????????????????????????? #???###### | | ?????????????????????????????# | | ?????????????????????????????? #?####### #### | | ?????????????????????????????? ###????## #??# | | ?????????????????????????????# ???## ##??# | | ????????????????????????#????# ## #### ##???# | | ????????????????????????# ???# ## ###### | | ????????????????????????# ???# ### ### | | ????????????????????????###??# #?# #?### ######## | | ????????????????????????#;##?# #?# #???###??????? | | ????????????????????????# #?# #?# #?????????#### | | ???????????????????????## t### #?# #????????##""" | | ??????????????????????### t t #?# #????????#" !* | | ????????????" #### ####@!g #?# #????????#"!!^ | | ????????????" =*g ; ; #?# #????????##^ | | ????????????" ; #?# #????####### | | ????????????????? ####### t ### ###### | | ??????????????? ????### ### ### | | ????????????? ?????## #### ####### | | ???????????# ??????# ####### ##### | | ?????????? ????????# ##???# | | ????????? ??????????# #????? | | ?????????#???????????# ######### #????? | | ?????????????????????## #####??????## ##????? | | ??????????????????????####???????##### #?????? | | ????????????????????????????????## #?????? | | ????????????????????????????????# ##?????? | | ????????????????????????????????# ##??????? | | ????????????????????????????????## ######???????? | | ?????????????????????????????????####????????????? | | ?????????????????????????????????????????????????? | | | | | | | | | | | | | | | +----------------------------------------------------+ Best States ------------- Heat Dissipation 28 Energy Generation 15 Energy Capacity 265 Matter Stores 300 Matter Capacity 300 Sight Range 18 Terrain Scan Density 10 Evasion (%) 55 Trap Extractor Capacity 6 Item Schematics ----------------- None Robot Schematics ------------------ None Fabricated ------------ Nothing Alien Tech Used ----------------- None Achievements -------------- None Challenges ------------ None Game ------ Seed RagnarokMyomerPropulsion Manual? 0 Play Time 00:27:14 Cumulative 30.4 hours Start 2022.05.01 @ 17:13:28 End 2022.05.01 @ 17:40:49 Sessions 1 Manual Loads 0 Difficulty Rogue Special Mode None Game No. 69 Rogue 69 Adventurer 0 Explorer 0 Win Type - Total 0 Types 0/0/0/0/0/0/0/0/0 Lore% 20 Gallery% 21 Achievement% 20 Wizard Run 0 Options --------- ASCII 0 Keyboard 0 Movement Mouse Keybinds 0 Fullscreen 1 Font 12/Smallcaps Map View 83x54 Tactical HUD 1 Map Filters NONE Filters NONE Steam 1 RUN: 64f7e0ea-8538-46cd-9f7b-eda92582919e